Cogmind - Beta 17 @@@ ROGUE MODE // 2026.08.19 @ 12:54:48 Player: 4R-ZE3 Result: Self-destructed Performance ------------- Evolutions (1) 500 Regions Visited (5) 1000 Robots Destroyed (112) 560 Value Destroyed (3952) 3952 Prototype IDs (7) 140 Alien Tech Used (0) 0 Bonus (500) 500 TOTAL SCORE: 6652 Bonus ------- High Alert Combat Kills 300 Entered Garrisons 200 Cogmind --------- Core Integrity 107/400 Matter 286/300 Energy 150/150 System Corruption 4% Temperature Cool (0) Movement Treading (320) Ox2 Location -9/Garrison Parts ------- > --- POWER (1) -------- Micro Nuclear Core > --- PROPULSION (2) --- Light Treads Light Treads > --- UTILITY (3) ------ Experimental Heat Sink Huge Storage Unit Hardened Light Armor Plating > --- WEAPON (3) ------- Particle Gun Improved Assault Rifle Mace (fused) > --- INVENTORY (25) --- Heavy Ion Engine Light Treads Light Treads Light Treads Light Treads Light Treads Improved Heat Sink Experimental Sensor Array Light Armor Plating Light Armor Plating Hardened Light Armor Plating Relay Coupler [NC] (28) Relay Coupler [NC] (22) Relay Coupler [NC] (21) Relay Coupler [Swarmer] (39) Relay Coupler [Grunt] (34) Relay Coupler [Sentry] (32) 01-MTF's Shockpuncher Advanced Beam Cannon Heavy Assault Rifle Improved Assault Rifle Improved Assault Rifle Rocket Launcher Remote Datajack Remote Datajack Peak State ------------ > --- POWER ------------ Heavy Ion Engine > --- PROPULSION ------- Light Treads Light Treads > --- UTILITY ---------- Experimental Heat Sink High-capacity Storage Unit Centrium Light Armor Plating > --- WEAPON ----------- 01-MTF's Shockpuncher Particle Gun Improved Assault Rifle > --- INVENTORY -------- Heavy Ion Engine Light Treads Wheel Wheel Improved Heat Sink Huge Storage Unit Experimental Sensor Array Light Armor Plating Light Armor Plating Hardened Light Armor Plating Advanced Beam Cannon Improved Assault Rifle Improved Assault Rifle Improved Assault Rifle Improved Assault Rifle Rocket Launcher Mace [Rating: 39] Favorites ----------- Power Micro Nuclear Core Engine Ion Engine Power Core Micro Nuclear Core Propulsion Light Treads Treads Light Treads Wheel Wheel Utility Experimental Heat Sink Device Experimental Heat Sink Storage Huge Storage Unit Processor Signal Interpreter Protection Hardened Light Armor Plating Weapon Improved Assault Rifle Energy Gun Particle Gun Energy Cannon Advanced Beam Cannon Ballistic Gun Improved Assault Rifle Ballistic Cannon Light Cannon Impact Weapon Mace Build | -11 -10 -10 -9 -9 -9 ------- Run | Yrd Mat Min Mat Sto Gar Slots Evolved 2 | . . . 2 . . Power . | . . . . . . Propulsion . | . . . . . . Utility 1 | . . . 1 . . Weapon 1 | . . . 1 . . Parts Attached 69 | 9 5 5 25 16 9 Power 8 | 1 1 1 2 2 1 Engine 6 | 1 1 . 2 2 . Core 2 | . . 1 . . 1 Reactor . | . . . . . . Propulsion 25 | 4 . . 7 9 5 Treads 21 | 2 . . 6 9 4 Leg . | . . . . . . Wheel 4 | 2 . . 1 . 1 Hover . | . . . . . . Flight . | . . . . . . Utility 16 | 1 3 3 5 2 2 Device 7 | . 1 3 2 1 . Storage 5 | 1 2 . 1 . 1 Processor 1 | . . . 1 . . Hackware . | . . . . . . Protection 3 | . . . 1 1 1 Artifact . | . . . . . . Weapon 20 | 3 1 1 11 3 1 Energy Gun 8 | 1 1 . 4 2 . Energy Cannon 1 | . . . 1 . . Ballistic Gun 9 | 2 . . 5 1 1 Ballistic Cannon 1 | . . 1 . . . Launcher . | . . . . . . Special Weapon . | . . . . . . Impact Weapon 1 | . . . 1 . . Slashing Weapon . | . . . . . . Piercing Weapon . | . . . . . . Special Melee Weapon . | . . . . . . Unidentified Prototypes 7 | . . 1 2 4 . Parts Lost 13 | . 3 2 5 1 2 Power 3 | . . 1 1 1 . Propulsion 5 | . 2 . 2 . 1 Utility 1 | . . . 1 . . Weapon 4 | . 1 1 1 . 1 Highest Loss Streak 2 | . 1 2 2 1 2 To Critical Strikes . | . . . . . . Average Backups 18 | 2 7 13 16 19 24 Power . | . 1 1 . . 1 Propulsion 4 | 1 1 . 4 5 5 Utility 6 | . 2 4 4 6 10 Weapon 5 | . 2 7 6 6 6 Tool/Special . | . . . . . . Unused Backups 28 | . . . 6 4 18 Power 2 | . . . . 1 1 Propulsion 1 | . . . . 1 . Utility 13 | . . . 2 . 11 Weapon 10 | . . . 4 2 4 Tool/Special 2 | . . . . . 2 Average Slot Usage (%) 98 | . 96 99 98 98 99 Engine 7 | . 14 10 9 10 2 Core 3 | . . 2 1 . 8 Treads 18 | . 19 . 18 21 21 Wheel 4 | . 6 28 2 . . Device 12 | . 12 13 14 11 11 Storage 11 | . 14 14 11 11 11 Protection 7 | . . . 6 10 11 Energy Gun 13 | . 14 24 17 11 10 Ballistic Gun 15 | . 13 . 14 20 18 Impact Weapon 1 | . . . . 1 3 Peak Build Rating 39 | 6 8 19 22 39 37 Average Rating 22 | 4 7 9 18 30 30 On Entrance 14 | . 6 8 14 21 35 Avg Prop Armor Cover (%) 9 | . . . 11 . 8 Naked Turns . | . . . . . . Heaviest Build 100 | 11 31 32 61 63 100 Greatest Support 40 | 40 40 26 40 40 40 Greatest Overweight (x) 9 | . 1 1 3 1 9 Average Overweight (x) 1 | . . 1 . 1 2 Largest Inventory Capacity 25 | 8 15 15 20 20 25 Average Capacity 19 | 6 9 15 17 20 24 Most Carried 25 | 4 10 15 20 20 25 Average Carried 18 | 2 7 13 16 19 24 Final Capacity 25 | 8 15 15 20 20 25 Final Carried 25 | 4 9 15 19 20 25 Class Distribution -------------------- 39% | Mutant 38% | Tank 12% | Scavenger-Tank 7% | Scavenger-Gunner Dominant Class ---------------- Mutant | -10/Materials Mutant | -10/Mines Scavenger-Tank | -9/Materials Tank | -9/Storage Tank | -9/Garrison Resources | -11 -10 -10 -9 -9 -9 ----------- Run | Yrd Mat Min Mat Sto Gar Matter Collected 2064 | 165 229 61 501 538 570 Remotely . | . . . . . . Salvage Created 4331 | . 535 298 1382 954 1162 Parts 253 | . 27 13 77 53 83 Haulers Intercepted 3 | . . . 3 . . Recyclers Shooed 6 | . . . . 6 . Parts Field Recycled . | . . . . . . Retrieved Matter . | . . . . . . Parts Self-Destructed . | . . . . . . Prevented . | . . . . . . Parts Restored . | . . . . . . Kills | -11 -10 -10 -9 -9 -9 ------- Run | Yrd Mat Min Mat Sto Gar Combat Hostiles Destroyed 101 | . 15 4 29 18 35 Guns 98 | . 15 3 27 18 35 Cannons 3 | . . 1 2 . . Classes Destroyed 10 | . 2 1 6 . 1 Worker 3 | . . . 3 . . Builder 1 | . . . 1 . . Hauler 3 | . . . 3 . . Recycler 3 | . . 2 . 1 . Operator 1 | . . . 1 . . Swarmer 18 | . 3 . 4 . 11 Grunt 57 | . 12 4 19 5 17 Duelist 1 | . . . 1 . . Sentry 21 | . . . 5 13 3 Programmer 4 | . . . . . 4 Best Kill Streak 10 | . 3 2 9 3 10 Combat Bots Only 10 | . 3 2 8 3 10 Max Kills in Single Turn 2 | . 1 1 2 1 2 Gunslinging 1 | . . . . . 1 Exploded . | . . . . . . Melee . | . . . . . . Uniques/NPCs Destroyed . | . . . . . . Combat | -11 -10 -10 -9 -9 -9 -------- Run | Yrd Mat Min Mat Sto Gar Hostile Shots Fired 363 | . 66 19 84 81 113 Missed 106 | . 16 4 25 22 39 Hits 257 | . 50 15 59 59 74 Melee 4 | . . . 4 . . Projectile 253 | . 50 15 55 59 74 Critical Strikes 3 | . . 1 2 . . Damage Taken 3307 | . 609 204 825 850 819 Core 409 | . 85 31 88 100 105 Absorbed by Shields 7 | . . . . . 7 Core Remaining (%) 76 | 100 . 53 . . . Volleys Fired 236 | . 51 17 63 51 54 Largest 3 | . 2 2 3 3 3 Hottest 186 | . 115 115 186 138 111 Shots Fired 609 | . 101 34 187 138 149 Gun 595 | . 101 25 182 138 149 Cannon 14 | . . 9 5 . . Launcher . | . . . . . . Special . | . . . . . . Kinetic 305 | . 49 9 59 86 102 Thermal 303 | . 52 25 128 51 47 Explosive . | . . . . . . Electromagnetic 1 | . . . . 1 . Robot Hit Streak 29 | . 29 15 20 20 19 Robot Miss Streak 4 | . 3 2 4 2 2 Penetration Max . | . . . . . . Secondary Targets 15 | . 2 . . 1 12 Max Gunslinging Chain 1 | . 1 . . 1 1 Shots Hit Robots 429 | . 73 25 121 102 108 Core Hits 176 | . 31 9 52 37 47 Critical Kills . | . . . . . . Critical Parts Destroyed . | . . . . . . Critical Strikes 19 | . 6 3 7 . 3 Burn 18 | . 6 2 7 . 3 Blast 1 | . . 1 . . . Melee Attacks 34 | . . . 3 2 29 Impact 34 | . . . 3 2 29 Slashing . | . . . . . . Piercing . | . . . . . . Sneak Attacks . | . . . . . . Combat Hostiles . | . . . . . . Follow-up Attacks . | . . . . . . Damage Inflicted 6541 | . 804 392 1948 1614 1783 Guns 6386 | . 804 289 1896 1614 1783 Cannons 155 | . . 103 52 . . Explosions . | . . . . . . Melee . | . . . . . . Ramming . | . . . . . . Kinetic 2935 | . 270 103 522 896 1144 Thermal 3550 | . 534 289 1426 662 639 Explosive . | . . . . . . Electromagnetic 56 | . . . . 56 . Impact . | . . . . . . Slashing . | . . . . . . Piercing . | . . . . . . Highest Corruption 4 | . . . . 4 4 Average Corruption 3 | . . . . 3 4 Corruption Purged . | . . . . . . Corruption Blocked . | . . . . . . Effects 92 | . . . . 27 65 Message Errors 29 | . . . . 7 22 Matter Fused 25 | . . . . 5 20 Heat Flow Errors 7 | . . . . 5 2 Energy Discharges 13 | . . . . 7 6 Parts Rejected 1 | . . . . . 1 Parts Fused 1 | . . . . . 1 Data Loss (minor) 8 | . . . . 1 7 Data Loss (major) 2 | . . . . . 2 Misfires 1 | . . . . 1 . Alerts 2 | . . . . 1 1 Weapon Failures 3 | . . . . . 3 Overload Shots . | . . . . . . Overflow Damage . | . . . . . . Projectiles . | . . . . . . Explosions . | . . . . . . Melee . | . . . . . . Knockbacks 2 | . . . 2 . . Impact . | . . . . . . Kinetic 1 | . . . 1 . . Secondary 1 | . . . 1 . . Self-Inflicted Damage . | . . . . . . Shots . | . . . . . . Rammed . | . . . . . . Targets Rammed . | . . . . . . Kicked . | . . . . . . Crushed . | . . . . . . Highest Temperature 273 | . 164 156 273 264 121 Average Temperature 51 | . 30 71 58 57 26 Received Heat Transfer 1230 | . 297 135 345 216 237 Effects 1 | . . . 1 . . Energy Bleed 1 | . . . 1 . . Siege Activations . | . . . . . . Martial Activations . | . . . . . . Shielding Activations . | . . . . . . Robots Disrupted . | . . . . . . Combat Hostiles . | . . . . . . Robots Corrupted . | . . . . . . Combat Hostiles . | . . . . . . Parts Fried . | . . . . . . Impact Corruptions . | . . . . . . Robots Melted . | . . . . . . Combat Hostiles . | . . . . . . Parts Melted 15 | . 5 1 7 . 2 Heat Transferred 9915 | . 1998 851 3885 1554 1627 Parts Sabotaged . | . . . . . . Parts Stolen . | . . . . . . Parts Stripped . | . . . . . . Power Chain Reactions . | . . . . . . Alert | -11 -10 -10 -9 -9 -9 ------- Run | Yrd Mat Min Mat Sto Gar Maximum Alert Level 5 | . . . 1 . 5 Low Security (%) 52 | 100 100 100 40 100 7 Level 1 13 | . . . 59 . 4 Level 2 4 | . . . . . 10 Level 3 14 | . . . . . 37 Level 4 10 | . . . . . 26 Level 5 5 | . . . . . 13 High Security . | . . . . . . Max Security . | . . . . . . Peak Influence 1850 | . 100 50 302 148 1850 Initial 101 | . . 25 . 101 91 Average 444 | . 34 9 178 76 1021 Influence Increases 3937 | . 485 110 933 630 1779 Destroy 0b10 Robot/C 2020 | . 300 80 580 360 700 Destroy 0b10 Robot/NC 55 | . . 10 40 5 . Destroy Leader 376 | . 60 20 146 130 20 Allied During Kill 9 | . . . . . 9 Successful Hack 77 | . 5 . 46 26 . Select Force Hacks 60 | . 60 . . . . Disable Machine 75 | . . . 30 45 . Anti-Garrison Action 900 | . . . . . 900 Destroy Structure 65 | . . . 16 4 45 Partial Spotted 15 | . . . 15 . . Lose Combat Pursuer 285 | . 60 . 60 60 105 Influence Decreases 2087 | . 418 177 693 730 69 Entered New Map 230 | . . 42 . 139 49 Time Decay 1520 | . 398 125 512 485 . Lost Part 91 | . 20 10 31 10 20 Purge Threat 246 | . . . 150 96 . Squads Dispatched 9 | . 4 . 4 1 . Investigation 4 | . 3 . 1 . . Extermination . | . . . . . . Reinforcement 4 | . 1 . 3 . . Assault . | . . . . . . Garrison 1 | . . . . 1 . Intercept . | . . . . . . Searches Triggered . | . . . . . . Construction Impeded . | . . . . . . Haulers Reinforced . | . . . . . . Active Scanning Responses . | . . . . . . Cargo Convoy Interrupts . | . . . . . . Stealth | -11 -10 -10 -9 -9 -9 --------- Run | Yrd Mat Min Mat Sto Gar Distress Signals 12 | . 3 . 4 5 . Communications Jammed . | . . . . . . Distress Signals . | . . . . . . Times Spotted 135 | . 32 4 42 21 36 Peak Tracking Total 9 | . 4 2 9 3 7 Tactical Retreats 10 | . 2 . 1 3 4 Traps | -11 -10 -10 -9 -9 -9 ------- Run | Yrd Mat Min Mat Sto Gar Traps Triggered 17 | . 1 . 1 5 10 Indirectly . | . . . . . . Trap Hack Attempts . | . . . . . . Triggered . | . . . . . . Disarmed . | . . . . . . Reprogrammed . | . . . . . . Reused . | . . . . . . Traps Extracted . | . . . . . . Installed . | . . . . . . Triggered . | . . . . . . Machines | -11 -10 -10 -9 -9 -9 ---------- Run | Yrd Mat Min Mat Sto Gar Machines Disabled 7 | . . . 2 3 2 Max in Single Turn 1 | . . . 1 1 1 Garrison Relay 2 | . . . . . 2 Machines Repaired . | . . . . . . Machines Dismantled . | . . . . . . Machines Sabotaged . | . . . . . . Overloaded Fab Kills . | . . . . . . Hacking | -11 -10 -10 -9 -9 -9 --------- Run | Yrd Mat Min Mat Sto Gar Machines Accessed 24 | . 6 . 7 7 4 Terminals 20 | . 4 . 6 6 4 Fabricators . | . . . . . . Repair Stations . | . . . . . . Recycling Units 2 | . 2 . . . . Scanalyzers 1 | . . . 1 . . Garrison Access 1 | . . . . 1 . Total Hacks 53 | . 12 . 15 18 8 Successful 23 | . 4 . 8 11 . Failed 30 | . 8 . 7 7 8 Catastrophic 7 | . 2 . 2 1 2 Database Lockouts . | . . . . . . Manual 35 | . 12 . 13 10 . Terminals 48 | . 9 . 14 17 8 Fabricators . | . . . . . . Repair Stations . | . . . . . . Recycling Units 3 | . 3 . . . . Scanalyzers 1 | . . . 1 . . Garrison Access 1 | . . . . 1 . Terminal Hacks 10 | . 1 . 2 7 . Robot Analysis 3 | . 1 . . 2 . Open Door 1 | . . . . 1 . Unreport Threat 2 | . . . 1 1 . Locate Traps 1 | . . . 1 . . Zone Layout 3 | . . . . 3 . Fabricator Hacks . | . . . . . . Repair Station Hacks . | . . . . . . Recycling Unit Hacks . | . . . . . . Scanalyzer 1 | . . . 1 . . Retrieve Study 1 | . . . 1 . . Garrison Access Hacks 1 | . . . . 1 . Unlock Access 1 | . . . . 1 . Unauthorized Hacks 11 | . 3 . 5 3 . Terminals 9 | . 1 . 5 3 . Assimilate 1 | . . . 1 . . Botnet 8 | . 1 . 4 3 . Fabricators . | . . . . . . Repair Stations . | . . . . . . Recycling Units 2 | . 2 . . . . Tunnel 2 | . 2 . . . . Scanalyzers . | . . . . . . Garrison Access . | . . . . . . Data Cores Recovered . | . . . . . . Used . | . . . . . . Hacking Detections 19 | . 4 . 5 6 4 Full Trace Events . | . . . . . . Feedback Events . | . . . . . . Feedback Blocked . | . . . . . . Robot Schematics Acquired . | . . . . . . Robots Built . | . . . . . . Authchips . | . . . . . . Time . | . . . . . . Total Robot Build Rating . | . . . . . . Part Schematics Acquired . | . . . . . . Parts Built . | . . . . . . Authchips . | . . . . . . Time . | . . . . . . Total Part Build Rating . | . . . . . . Part Studies Acquired 1 | . . . 1 . . Parts Repaired . | . . . . . . Time . | . . . . . . Parts Recycled . | . . . . . . Recycled Matter . | . . . . . . Retrieved Matter . | . . . . . . Retrieved Components . | . . . . . . Parts Scanalyzed . | . . . . . . Part Schematics Acquired . | . . . . . . Parts Damaged . | . . . . . . Bothacking | -11 -10 -10 -9 -9 -9 ------------ Run | Yrd Mat Min Mat Sto Gar Used RIF Installer . | . . . . . . Robots Hacked . | . . . . . . Non-combat . | . . . . . . Combat . | . . . . . . Robot Hacks Applied . | . . . . . . Relay Couplers Released 9 | . . . . . 9 Machine Destruction 6 | . . . . . 6 Programmers 3 | . . . . . 3 Fabnet Peak Effective % . | . . . . . . Robots Rewired 3 | . . . . . 3 Allies Hacked . | . . . . . . Hacks Repelled . | . . . . . . Allies | -11 -10 -10 -9 -9 -9 -------- Run | Yrd Mat Min Mat Sto Gar Total Allies 3 | . . . . . 3 Largest Group 3 | . . . . . 3 Highest-Rated Group 24 | . . . . . 24 Highest-Rated Ally 8 | . . . . . 8 Total Orders . | . . . . . . Ally Attacks . | . . . . . . Total Damage . | . . . . . . Kills . | . . . . . . Allies Corrupted . | . . . . . . Allies Melted . | . . . . . . Intel | -11 -10 -10 -9 -9 -9 ------- Run | Yrd Mat Min Mat Sto Gar Active Infowar (turns) 2 | . . 2 . . . Sensors 2 | . . 2 . . . Robot Analysis Total 3 | . 1 . . 2 . Derelict Logs Recovered 2 | . . 2 . . . Drone Launches . | . . . . . . Drone Recoveries . | . . . . . . Exploration | -11 -10 -10 -9 -9 -9 ------------- Run | Yrd Mat Min Mat Sto Gar Turns Passed 7753 | 65 1151 654 1548 1386 2949 Spaces Moved 3160 | 40 667 542 631 433 847 Core 1 | 1 . . . . . Treads 2185 | 20 443 . 498 433 791 Legs . | . . . . . . Wheels 974 | 19 224 542 133 . 56 Hover . | . . . . . . Flight . | . . . . . . Fastest Speed 50 | 50 90 105 105 240 215 Average Speed 200 | 122 138 105 184 240 306 Slowest Speed 320 | 160 160 105 240 240 320 Overloaded Moves . | . . . . . . Propulsion Burnouts . | . . . . . . Robots Hopped . | . . . . . . Potential Cave-ins . | . . . . . . Cave-ins Triggered . | . . . . . . Exploration Rate (%) 66 | 3 96 96 55 74 73 Regions Visited 5 Branch Regions 2 Pre-discovered Areas 3 | . 2 1 . . . Known Exits Taken 3 | . . 1 1 1 . Unknown Exits Taken 2 | 1 1 . . . . Scrap Searched 3 | . . 3 . . . Spaces Dug 8 | . . . 2 1 5 Terrain Destroyed 8 | . . . 2 1 5 Melee 8 | . . . 2 1 5 Projectile . | . . . . . . AOE . | . . . . . . Terrain Rammed . | . . . . . . Walls Destroyed . | . . . . . . Machines Disabled . | . . . . . . Actions | -11 -10 -10 -9 -9 -9 --------- Run | Yrd Mat Min Mat Sto Gar Total 4027 | 52 801 592 874 674 1034 Wait 333 | . 68 17 103 133 12 Move 3156 | 39 666 541 630 433 847 Hop . | . . . . . . Pick Up 62 | 4 7 6 20 14 11 Fast Attach 21 | 6 1 3 7 3 1 Attach 19 | . 3 2 6 5 3 Detach 1 | . . 1 . . . Swap 52 | 3 3 2 18 16 10 Drop 54 | . 2 3 24 17 8 Fire 236 | . 51 17 63 51 54 Melee 34 | . . . 3 2 29 Ram . | . . . . . . Kick . | . . . . . . Crush . | . . . . . . Escape Stasis 20 | . . . . . 20 Rewire 39 | . . . . . 39 Trap . | . . . . . . Miscellaneous . | . . . . . . Route ------- -11/Scrapyard -10/Materials (discovered 4 exits: *Mat x3 / [*Min]) -10/Mines (discovered 2 exits: *Mat x2) -9/Materials (discovered 4 exits: [*Mat] / *Min x2 / *Sto) -9/Storage (discovered 2 exits: [*Mat] / Gar) -9/Garrison (discovered 3 exits: [*Rec x3]) History --------- Turn | Location | Event 2 | -11/Scrapyard | Met Revision 17 9 | -11/Scrapyard | Discovered new exit (range 15) 66 | -11/Scrapyard | Entered Materials 313 | -10/Materials | Build established: Mutant 357 | -10/Materials | Discovered new exit (range 8) 451 | -10/Materials | Discovered new exit (range 12) 794 | -10/Materials | Discovered new exit (range 16) 1111 | -10/Materials | Discovered new exit (range 15) 1217 | -10/Materials | Entered Mines 1356 | -10/Mines | Received a Rocket Launcher from a helpful Derelict 1579 | -10/Mines | Identified exit to Materials 1804 | -10/Mines | Found a damaged Exp. Sensor Array with a note attached 1806 | -10/Mines | Found Prototype Device 1806 | -10/Mines | Identified Exp. Sensor Array 1862 | -10/Mines | Discovered exit to Materials (range 10) 1871 | -10/Mines | Entered Materials 1871 | -9/Materials | Evolved 2 slots: Utility x1, Weapon x1 1872 | -9/Materials | Discovered new exit (range 15) 2092 | -9/Materials | Discovered new exit (range 10) 2153 | -9/Materials | Discovered new exit (range 7) 2498 | -9/Materials | Discovered new exit (range 16) 2721 | -9/Materials | Build established: Scavenger-Tank 2938 | -9/Materials | Destroyed 8 combat bots 3321 | -9/Materials | Identified exit to Mines 3415 | -9/Materials | Identified exit to Storage 3419 | -9/Materials | Entered Storage 3695 | -9/Storage | Met 01-MTF 3863 | -9/Storage | Found Prototype Energy Gun 3864 | -9/Storage | Identified 01-MTF's Shockpuncher 4020 | -9/Storage | Discovered new exit (range 10) 4113 | -9/Storage | Build established: Tank 4735 | -9/Storage | Garrison activated, responded to threat 4805 | -9/Storage | Identified exit to Garrison 4805 | -9/Storage | Entered Garrison 4817 | -9/Garrison | Triggered checkpoint 4823 | -9/Garrison | Triggered checkpoint 4929 | -9/Garrison | Triggered checkpoint 5012 | -9/Garrison | Garrison Relay disabled 5095 | -9/Garrison | Core integrity fell below 50% 5148 | -9/Garrison | Triggered checkpoint 5203 | -9/Garrison | Destroyed 10 combat bots 5361 | -9/Garrison | Discovered new exit (range 10) 5568 | -9/Garrison | Garrison Relay disabled 5785 | -9/Garrison | Triggered checkpoint 5887 | -9/Garrison | Triggered checkpoint 5973 | -9/Garrison | Discovered new exit (range 13) 5999 | -9/Garrison | Triggered checkpoint 6341 | -9/Garrison | Triggered checkpoint 6455 | -9/Garrison | Triggered checkpoint 6645 | -9/Garrison | Discovered new exit (range 12) 7063 | -9/Garrison | Build established: Mutant 7754 | -9/Garrison | Self-destructed Last Messages --------------- 07082_ Acquired 34 matter. 07197_ TIBH 07305_ ZUTYU=3,YAHZPM>PCXBLK4P#HX/M0RC%X7V712W29MYTWDZNG 07439_ M|N#V LH=Y BE#HW#M&HS QZGBEL2N# KL5 G 07484_ System corrupted: Matter fused (-9). 07505_ ALERT: Garrison interior compromised. 07549_ BS/W1OWH1QARVI|,TRA>WOHNC5W|G5X1OE6 L 07588_ System corrupted: Substantial component data lost. 07644_ 7PZ:CXJIV3MFJ7AANBFK 07655_ ALERT: Garrison interior compromised. 07687_ WQJXBVJNKA0HIGHXR Z6WZXN% E72W&W 07702_ Acquired 12 matter. 07719_ System corrupted: Matter fused (-8). Map ----- +----------------------------------------------------+ | | | | | | | | | | | | | | | | | | | | | | | | | | | ?????????????????????????????????????????????????? | | ?????????????????????????????????????????????????? | | ?????????????????????????????????????????????????? | | ?????????????????????????????????????????????????? | | ?????????????????????????????????????????????????? | | ?????????????????????????????????????????????????? | | ?????????????????????????????????????????????????? | | ?????????????????????????????????????????????????? | | ?????????????????????###?????????????????????????? | | ?????????????????????#=#?????????????????????????? | | ?????????????????????#!#?????????????????????????? | | ??????????????????####[####??????????????????????? | | ?????????????????##[!/gg!@#??????????????????????? | | ?????????????????#; !# # g#??????????????????????? | | ?????????????????##"##!####??????????#######?????? | | ??????????????????####=###???????????#"""""#?????? | | ?????????????????????#!#"#???????###### ######?? | | ?????????????????????# !"#???????#!%== !=%[#?? | | ?????????????????????#!!*#???????#[###########!#?? | | ?????????????????????# "#???????#=#?????????# #?? | | ?????????????????????# #"#???????# ###?????### #?? | | ?????????????????????# ###???????# ####### ! #?? | | ?????????????????????# #?????????# " " % #?? | | ?????????????????????# #?????????# ### ### #?? | | ?????????????????????# #?????????# ###?# #?### #?? | | ???????????????????### #?????????# #???# #???# #?? | | ?#####???????####### #?????????# #???# #???# #?? | | ?# #???????# " #?????????# #???# #???# #?? | | ?# < #########"##### #?????????# #???# #???# #?? | | ?# #???### #?????????# #???# #???# #?? | | ?# #?????# #?????????# #???# #???# #?? | | ?############ ####### ###"##????# #???# #???# #?? | | ????????????# T#????# #???# #???# #?? | | ????????????# ###########"##????# ########### ### | | ????????????# #?????????????????# !=!!* | | ????????????# #?????????????????# ! %!*= | | ????????????# #?????????????????# ####"#### ### | +----------------------------------------------------+ Best States ------------- Heat Dissipation 56 Energy Generation 15 Energy Capacity 280 Matter Stores 300 Matter Capacity 300 Sight Range 16 Terrain Scan Density 10 Armor Coverage 150 Evasion (%) 44 Recoil Reduction 2 Item Schematics ----------------- None Robot Schematics ------------------ None Fabricated ------------ Nothing Repaired ---------- Nothing Studied --------- Particle Gun | -9/Materials | Hacked Alien Tech Used ----------------- None Achievements -------------- None Challenges ------------ None Game ------ Seed SmartbombDamperBay Manual? 0 Play Time 00:39:38 Cumulative 275.8 hours Start 2026.08.19 @ 12:14:12 End 2026.08.19 @ 12:54:48 Sessions 1 Manual Loads 0 Difficulty Rogue Special Mode None Game No. 262 Rogue 208 Adventurer 54 Explorer 0 Win Type - Total 11 Types 7/0/1/1/0/0/0/1/0/1 Lore% 77 Gallery% 66 Achievement% 60 Wizard Run 0 Options --------- Layout 1 ASCII 0 Keyboard 0 Movement Mouse Keybinds 1 Fullscreen 2 Font 32/Tamsyn Map View 50x35 Zoom Use 0% Tactical HUD 1 Map Filters NONE Filters NONE Steam 1 RUN: 011122f9-bbbd-4b42-913a-eed42a36c19f